fUST/lending_fUST_20250907
["ID","MTS","AMOUNT","RATE_DAILY","PERIOD"]
[383948888,1757191838948,-778.114771,0.00013699,2]
[383948889,1757191838958,-500.0,0.00013788,2]
[383948890,1757191838967,-361.19103771,0.000139,2]
[383948891,1757191838977,-500.0,0.00013911,2]
[383948892,1757191838987,-253.41373753,0.00013911,2]
[383948893,1757191838996,-500.0,0.00013924,2]
[383948894,1757191839005,-500.0,0.00013924,2]
[383948895,1757191839015,-500.0,0.0001397,2]
[383948896,1757191839024,-300.0,0.00013971,2]
[383948897,1757191839034,-300.0,0.00013971,2]
[383948898,1757191839043,-300.0,0.00013971,2]
[383948899,1757191839053,-300.0,0.00013971,2]
[383948900,1757191839063,-300.0,0.00013971,2]
[383948901,1757191839072,-300.0,0.00013971,2]
[383948902,1757191839082,-300.0,0.00013971,2]
[383948903,1757191839091,-300.0,0.00013971,2]
[383948904,1757191839101,-300.0,0.00013971,2]
[383948905,1757191839112,-300.0,0.00013971,2]
[383948906,1757191839121,-300.0,0.00013971,2]
[383948907,1757191839131,-300.0,0.00013971,2]
[383948908,1757191839141,-300.0,0.00013971,2]
[383948909,1757191839151,-300.0,0.00013971,2]
[383948910,1757191839161,-300.0,0.00013971,2]
[383948911,1757191839170,-600.0,0.00013971,2]
[383948912,1757191839183,-480.0,0.00013972,2]
[383948913,1757191839194,-480.0,0.00013972,2]
[383948914,1757191839204,-480.0,0.00013972,2]
[383948915,1757191839213,-480.0,0.00013972,2]
[383948916,1757191839224,-480.0,0.00013972,2]
[383948917,1757191839233,-240.08098566,0.00013972,2]
[383948918,1757191839243,-509.88,0.00013972,2]
[383948919,1757191839254,-480.0,0.00013972,2]
[383948920,1757191839264,-480.0,0.00013972,2]
[383948921,1757191839273,-480.0,0.00013972,2]
[383948922,1757191839283,-480.0,0.00013972,2]
[383948923,1757191839293,-480.0,0.00013972,2]
[383948924,1757191839303,-480.0,0.00013972,2]
[383948925,1757191839312,-602.8,0.00013972,2]
[383948926,1757191839321,-480.0,0.00013972,2]
[383948927,1757191839331,-480.0,0.00013972,2]
[383948928,1757191839340,-480.0,0.00013972,2]
[383948929,1757191839349,-480.0,0.00013972,2]
[383948930,1757191839528,-480.0,0.00013972,2]
[383948931,1757191839538,-500.0,0.00014063,2]
[383948932,1757191839547,-192.48109214,0.00014244,2]
[383948933,1757191839559,-480.0,0.00014246,2]
[383948934,1757191839569,-480.0,0.00014246,2]
[383948935,1757191839579,-372.65323898,0.00014246,2]
[383948936,1757191839588,-480.0,0.00014246,2]
[383948937,1757191839598,-315.31061994,0.00014246,2]
[383948938,1757191839607,-480.0,0.00014246,2]
[383948939,1757191839618,-480.0,0.00014246,2]
[383948940,1757191839627,-500.0,0.00014312,2]
[383948941,1757191839637,-1000.0,0.00014459,2]
[383948942,1757191839647,-1000.0,0.00014471,2]
[383948943,1757191839656,-1000.0,0.00014471,2]
[383948944,1757191839666,-480.0,0.0001452,2]
[383948945,1757191839676,-480.0,0.0001452,2]
[383948946,1757191839685,-480.0,0.0001452,2]
[383948947,1757191839695,-480.0,0.0001452,2]
[383948948,1757191839705,-480.0,0.0001452,2]
[383948949,1757191839714,-160.0,0.00014544,2]
[383948950,1757191839724,-160.0,0.00014544,2]
[383948951,1757191839734,-417.15472785,0.00014544,2]
[383948952,1757191839744,-203.21852024,0.00014544,2]
[383948953,1757191839754,-530.56961759,0.00014544,2]
[383948954,1757191839764,-217.58669629,0.00014544,2]
[383948955,1757191839773,-232.99021696,0.00014544,2]
[383948956,1757191839782,-846.58554688,0.00014544,2]
[383948957,1757191839791,-480.0,0.00014794,2]
[383948958,1757191839801,-480.0,0.00014794,2]
[383948959,1757191839811,-480.0,0.00014794,2]
[383948960,1757191839820,-480.0,0.00014794,2]
[383948961,1757191839830,-480.0,0.00014794,2]
[383948962,1757191839839,-247.38701473,0.00015007,2]
[383948963,1757191839849,-1500.0,0.00015019,2]
[383948964,1757191839859,-1200.0,0.00015067,2]
[383948965,1757191839869,-480.0,0.00015068,2]
[383948966,1757191839879,-381.86389165,0.00015068,2]
[383948967,1757191839888,-480.0,0.00015068,2]
[383948968,1757191839898,-480.0,0.00015068,2]
[383948969,1757191839907,-480.0,0.00015068,2]
[383948970,1757191839917,-975.0,0.00015243,2]
[383948971,1757191839927,-409.0,0.00015243,2]
[383948972,1757191839937,-616.981,0.00015243,2]
[383948973,1757191839946,-2154.0,0.00015243,2]
[383948974,1757191839956,-480.0,0.00015342,2]
[383948975,1757191839966,-480.0,0.00015342,2]
[383948976,1757191839975,-480.0,0.00015342,2]
[383948977,1757191839984,-480.0,0.00015342,2]
[383948978,1757191839995,-720.0,0.00015368,2]
[383948979,1757191840006,-2057.77116852,0.00015567,2]
[383948980,1757191840016,-443.67385895,0.00015616,2]
[383948981,1757191840026,-480.0,0.00015616,2]
[383948982,1757191840035,-480.0,0.00015616,2]
[383948983,1757191840045,-480.0,0.00015616,2]
[383948984,1757191840055,-480.0,0.0001589,2]
[383948985,1757191840064,-480.0,0.0001589,2]
[383948986,1757191840074,-480.0,0.0001589,2]
[383948987,1757191840083,-279.73,0.00016164,2]
[383948988,1757191840094,-480.0,0.00016164,2]
[383948989,1757191840103,-480.0,0.00016164,2]
[383948990,1757191840113,-522.08056365,0.00016438,2]
[383948991,1757191840123,-480.0,0.00016438,2]
[383948992,1757191840135,-480.0,0.00016712,2]
[383948993,1757191840144,-165.41,0.00016809,2]
[383948994,1757191840154,-339.87,0.00016904,2]
[383948995,1757191840163,-864.0,0.00016905,2]
[383948996,1757191840173,-480.0,0.00016986,2]
[383948997,1757191840184,-480.0,0.0001726,2]
[383948998,1757191840193,-457.42495334,0.00017534,2]
[383948999,1757191840202,-189.7854373,0.00017854,2]
[383949000,1757191840211,-456.10532545,0.00017854,2]
[383949001,1757191840220,-500.0,0.00017854,2]
[383949002,1757191840229,-500.0,0.00017854,2]
[383949003,1757191840239,-500.0,0.00017854,2]
[383949004,1757191840249,-197.1183918,0.00017854,2]
[383949005,1757191840258,-547.69211679,0.00017854,2]
[383949006,1757191840269,-1000.0,0.00017855,2]
[383949007,1757191840278,-1000.0,0.00017855,2]
[383949008,1757191840288,-1000.0,0.00017855,2]
[383949009,1757191840299,-1000.0,0.00017855,2]
[383949010,1757191840309,-1000.0,0.00017855,2]
[383949012,1757191840318,-1000.0,0.00017855,2]
[383949013,1757191840328,-1000.0,0.00017855,2]
[383949014,1757191840337,-1000.0,0.00017855,2]
[383949015,1757191840347,-1000.0,0.00017855,2]
[383949016,1757191840356,-1128.14254113,0.00017855,2]
[383949017,1757191840365,-975.0,0.00018243,2]
[383949018,1757191840375,-409.0,0.00018243,2]
[383949019,1757191840384,-666.541,0.00018243,2]
[383949020,1757191840394,-169.97827551,0.00018546,2]
[383949021,1757191840403,-168.0,0.00018688,2]
[383949022,1757191840422,-168.0,0.00018738,2]
[383949023,1757191840434,-325.0,0.00018882,2]
[383949024,1757191840444,-3323.85870208,0.00019,2]
[383949025,1757191840460,-702.14129792,0.00019,2]
[383949026,1757191840471,-412.0,0.00019058,2]
[383949027,1757191840481,-500.0,0.00019178,2]
[383949028,1757191840490,-150.0,0.00019178,2]
[383949029,1757191840501,-168.0,0.00019295,2]
[383949030,1757191840510,-300.0,0.00019315,2]
[383949031,1757191840521,-1506.80382649,0.000194,2]
[383949032,1757191840532,-3572.71252895,0.000194,2]
[383949034,1757191840544,-3204.48899888,0.000194,2]
[383949035,1757191840553,-157.0,0.00019452,2]
[383949036,1757191840563,-186.20923136,0.00019452,2]
[383949037,1757191840573,-157.0,0.00019452,2]
[383949038,1757191840583,-157.0,0.00019452,2]
[383949039,1757191840593,-302.0,0.00019452,2]
[383949041,1757191840603,-157.0,0.00019452,2]
[383949043,1757191840613,-500.0,0.00019452,2]
[383949045,1757191840622,-217.11703115,0.00019452,2]
[383949047,1757191840632,-500.0,0.00019473,2]
[383949049,1757191840642,-500.0,0.00019473,2]
[383949051,1757191840652,-500.0,0.00019473,2]
[383949052,1757191840661,-500.0,0.00019473,2]
[383949053,1757191840670,-160.0,0.00019498,2]
[383949054,1757191840679,-344.41351073,0.00019499,2]
[383949055,1757191840690,-155.58648927,0.00019499,2]
[383949056,1757191840700,-500.0,0.00019499,2]
[383949057,1757191840710,-504.74087728,0.00019499,2]
[383949058,1757191840720,-178.19706642,0.00019499,2]
[383949059,1757191840729,-130.13282304,0.000195,2]
[383949060,1757191840741,-711.80323751,0.000195,2]
[383949061,1757191840757,-19832.52017484,0.000195,2]
[383949063,1757191840766,-21963.88999452,0.000195,2]
[383949064,1757191840803,-11125.0,0.000195,2]
[383949065,1757191840817,-62898.982758,0.000195,2]
[383949066,1757191840829,-408.0,0.000195,2]
[383949074,1757191844011,-881.14893556,0.00013598,2]
[383949075,1757191844022,-480.0,0.00013832,2]
[383949076,1757191844032,-8485.35559561,0.000195,2]
[383949077,1757191844068,-3281.72824,0.000195,2]
[383949081,1757191844079,-2764.5168336,0.000195,2]
[383949083,1757191844091,-425.0,0.000195,2]
[383949085,1757191844102,-2115.44488179,0.000195,2]
[383949104,1757191846886,-881.14893555,0.00015758,2]
[383949106,1757191846895,-12928.22197155,0.000195,2]
[383949164,1757191917696,1000.0,0.00018966,20]
[383949210,1757193031931,-300.0,0.0001329,2]
[383949212,1757193031941,-203.99016635,0.0001346,2]
[383949214,1757193031951,-212.4323838,0.00013697,2]
[383949216,1757193031962,-87.5676162,0.00013697,2]
[383949218,1757193031971,-186.14232848,0.00013698,2]
[383949220,1757193031981,-480.0,0.00013698,2]
[383949222,1757193031990,-480.0,0.00013698,2]
[383949224,1757193032000,-482.73678879,0.00013698,2]
[383949226,1757193032009,-480.0,0.00013698,2]
[383949228,1757193032019,-480.0,0.00013698,2]
[383949230,1757193032029,-269.14586845,0.00013698,2]
[383949232,1757193032037,-480.0,0.00013698,2]
[383949234,1757193032047,-480.0,0.00013698,2]
[383949236,1757193032056,-480.0,0.00013698,2]
[383949238,1757193032066,-480.0,0.00013698,2]
[383949240,1757193032076,-480.0,0.00013698,2]
[383949242,1757193032085,-480.0,0.00013698,2]
[383949244,1757193032095,-480.0,0.00013698,2]
[383949246,1757193032104,-396.48987934,0.00013698,2]
[383949248,1757193032114,-480.0,0.00013698,2]
[383949250,1757193032124,-480.0,0.00013698,2]
[383949252,1757193032133,-480.0,0.00013698,2]
[383949254,1757193032143,-480.0,0.00013698,2]
[383949256,1757193032152,-480.0,0.00013698,2]
[383949258,1757193032161,-480.0,0.00013698,2]
[383949260,1757193032170,-480.0,0.00013698,2]
[383949262,1757193032180,-50.88357727,0.00013698,2]
[383949264,1757193032192,-429.11642273,0.00013698,2]
[383949266,1757193032201,-480.0,0.00013698,2]
[383949268,1757193032211,-480.0,0.00013698,2]
[383949270,1757193032220,-480.0,0.00013698,2]
[383949272,1757193032229,-522.66433613,0.00013699,2]
[383949275,1757193032241,-216.54469587,0.00013699,2]
[383949277,1757193032251,-739.68935407,0.00013871,2]
[383949279,1757193032263,-536.98738908,0.00013871,2]
[383949281,1757193032273,-480.0,0.0001397,2]
[383949283,1757193032283,-480.0,0.0001397,2]
[383949285,1757193032292,-480.0,0.0001397,2]
[383949287,1757193032302,-480.0,0.0001397,2]
[383949289,1757193032311,-480.0,0.0001397,2]
[383949291,1757193032320,-480.0,0.0001397,2]
[383949293,1757193032330,-480.0,0.0001397,2]
[383949295,1757193032339,-480.0,0.0001397,2]
[383949297,1757193032349,-480.0,0.0001397,2]
[383949299,1757193032359,-456.107189,0.0001397,2]
[383949301,1757193032370,-480.0,0.0001397,2]
[383949303,1757193032379,-480.0,0.0001397,2]
[383949305,1757193032389,-480.0,0.0001397,2]
[383949307,1757193032398,-480.0,0.0001397,2]
[383949309,1757193032407,-480.0,0.0001397,2]
[383949311,1757193032417,-480.0,0.0001397,2]
[383949313,1757193032427,-480.0,0.0001397,2]
[383949315,1757193032438,-480.0,0.0001397,2]
[383949317,1757193032448,-480.0,0.0001397,2]
[383949319,1757193032458,-480.0,0.0001397,2]
[383949321,1757193032468,-480.0,0.0001397,2]
[383949323,1757193032477,-480.0,0.0001397,2]
[383949325,1757193032487,-480.0,0.0001397,2]
[383949326,1757193032496,-480.0,0.0001397,2]
[383949327,1757193032506,-423.21170726,0.0001397,2]
[383949329,1757193032516,-76.69070853,0.0001397,2]
[383949344,1757193037770,-403.30929147,0.0001397,2]
[383949346,1757193037780,-480.0,0.0001397,2]
[383949348,1757193037789,-23.02671253,0.0001397,2]
[383949352,1757193038396,-456.97328747,0.0001397,2]
[383949353,1757193038406,-480.0,0.0001397,2]
[383949354,1757193038415,-480.0,0.0001397,2]
[383949355,1757193038424,-480.0,0.0001397,2]
[383949356,1757193038433,-480.0,0.0001397,2]
[383949357,1757193038446,-300.0,0.00013971,2]
[383949358,1757193038461,-300.0,0.00013971,2]
[383949359,1757193038471,-300.0,0.00013971,2]
[383949360,1757193038480,-300.0,0.00013971,2]
[383949361,1757193038490,-300.0,0.00013971,2]
[383949362,1757193038499,-300.0,0.00013971,2]
[383949363,1757193038509,-300.0,0.00013971,2]
[383949364,1757193038518,-300.0,0.00013971,2]
[383949365,1757193038527,-300.0,0.00013971,2]
[383949366,1757193038537,-300.0,0.00013971,2]
[383949367,1757193038547,-300.0,0.00013971,2]
[383949368,1757193038556,-300.0,0.00013971,2]
[383949369,1757193038565,-300.0,0.00013971,2]
[383949370,1757193038574,-300.0,0.00013971,2]
[383949371,1757193038583,-300.0,0.00013971,2]
[383949372,1757193038593,-183.2289462,0.00013972,2]
[383949373,1757193038602,-188.149304,0.00014111,2]
[383949374,1757193038612,-600.0,0.00014249,2]
[383949375,1757193038621,-160.0,0.0001459,2]
[383949376,1757193038630,-417.15472785,0.0001459,2]
[383949377,1757193038640,-203.21852024,0.0001459,2]
[383949378,1757193038649,-530.56961759,0.0001459,2]
[383949379,1757193038659,-217.58669629,0.0001459,2]
[383949380,1757193038669,-232.99021696,0.0001459,2]
[383949381,1757193038678,-160.0,0.0001459,2]
[383949382,1757193038687,-846.58554688,0.0001459,2]
[383949383,1757193038697,-500.0,0.000146,2]
[383949384,1757193038706,-420.0,0.0001501,2]
[383949385,1757193038715,-363.66498283,0.00015148,2]
[383949386,1757193038724,-975.0,0.00015408,2]
[383949387,1757193038734,-409.0,0.00015408,2]
[383949388,1757193038743,-518.43315648,0.00015674,2]
[383949389,1757193038755,-201.56684352,0.00015674,2]
[383949390,1757193038764,-483.28315648,0.00016,2]
[383949391,1757193038776,-2516.71684352,0.00016,2]
[383949392,1757193038786,-3000.0,0.0001601,2]
[383949393,1757193038795,-3000.0,0.0001602,2]
[383949394,1757193038804,-3000.0,0.0001603,2]
[383949395,1757193038818,-3000.0,0.0001604,2]
[383949396,1757193038827,-3000.0,0.0001605,2]
[383949397,1757193038837,-3000.0,0.0001606,2]
[383949398,1757193038847,-3000.0,0.0001607,2]
[383949399,1757193038857,-3000.0,0.0001608,2]
[383949400,1757193038867,-3000.0,0.0001609,2]
[383949401,1757193038876,-3000.0,0.000161,2]
[383949402,1757193038886,-3000.0,0.0001611,2]
[383949403,1757193038897,-3000.0,0.0001612,2]
[383949404,1757193038907,-3000.0,0.0001613,2]
[383949405,1757193038916,-279.69332584,0.0001614,2]
[383949406,1757193038928,-250.30141901,0.0001614,2]
[383949421,1757193039940,-460.95174316,0.0001614,2]
[383949422,1757193039952,-456.4,0.0001614,2]
[383949423,1757193039965,-572.325,0.0001614,2]
[383949424,1757193040048,-267.0,0.0001614,2]
[383949449,1757193043153,-713.32851199,0.0001614,2]
[383949450,1757193043163,-665.80099049,0.0001615,2]
[383949494,1757193078665,-480.0,0.00013698,2]
[383949495,1757193081039,-480.0,0.00013698,2]
[383949496,1757193094582,-480.0,0.00013698,2]
[383949497,1757193105783,-480.0,0.00013698,2]
[383949498,1757193107609,-404.8440741,0.00013698,2]
[383949499,1757193248380,-195.7631112,0.0001356,2]
[383949500,1757193250806,-104.2368888,0.0001356,2]
[383949501,1757193270243,-300.0,0.0001356,2]
[383949502,1757193293632,-258.6766542,0.0001356,2]
[383949503,1757193511257,-152.0,0.0001356,2]
[383949504,1757193513700,-347.47789898,0.0001356,2]
[383949505,1757193516141,-480.0,0.0001356,2]
[383949572,1757194238010,-843.92216455,0.00013458,2]
[383949573,1757194238021,-1500.0,0.0001356,2]
[383949574,1757194238031,-300.0,0.00013697,2]
[383949575,1757194238041,-1200.0,0.00013697,2]
[383949576,1757194238051,-480.0,0.00013698,2]
[383949577,1757194238061,-480.0,0.00013698,2]
[383949578,1757194238070,-339.98635412,0.00013698,2]
[383949579,1757194238080,-480.0,0.00013698,2]
[383949580,1757194238091,-36.71849021,0.00013698,2]
[383949581,1757194238104,-436.20751346,0.00013698,2]
[383949582,1757194238117,-7.07399633,0.00013698,2]
[383949583,1757194238127,-480.0,0.00013698,2]
[383949584,1757194238137,-480.0,0.00013698,2]
[383949585,1757194238147,-480.0,0.00013698,2]
[383949586,1757194238156,-218.54856176,0.00013698,2]
[383949587,1757194238166,-480.0,0.00013698,2]
[383949588,1757194238175,-480.0,0.00013698,2]
[383949589,1757194238184,-480.0,0.00013698,2]
[383949590,1757194238194,-480.0,0.00013698,2]
[383949591,1757194238203,-480.0,0.00013698,2]
[383949592,1757194238212,-702.24858,0.00013699,2]
[383949593,1757194238222,-286.030859,0.00013912,2]
[383949594,1757194238231,-480.0,0.00013969,2]
[383949595,1757194238240,-421.55447545,0.00013969,2]
[383949596,1757194238252,-480.0,0.00013969,2]
[383949597,1757194238261,-520.0,0.00013969,2]
[383949598,1757194238272,-480.0,0.00013969,2]
[383949599,1757194238288,-480.0,0.00013969,2]
[383949600,1757194238297,-480.0,0.00013969,2]
[383949601,1757194238306,-199.91431909,0.00013969,2]
[383949602,1757194238318,-480.0,0.00013969,2]
[383949603,1757194238327,-480.0,0.00013969,2]
[383949604,1757194238337,-480.0,0.00013969,2]
[383949605,1757194238348,-480.0,0.00013969,2]
[383949606,1757194238357,-480.0,0.00013969,2]
[383949607,1757194238367,-480.0,0.00013969,2]
[383949608,1757194238377,-480.0,0.00013969,2]
[383949609,1757194238386,-480.0,0.00013969,2]
[383949610,1757194238395,-480.0,0.0001397,2]
[383949611,1757194238406,-511.97762308,0.0001397,2]
[383949612,1757194238415,-480.0,0.0001397,2]
[383949613,1757194238425,-480.0,0.0001397,2]
[383949614,1757194238435,-480.0,0.0001397,2]
[383949615,1757194238445,-480.0,0.0001397,2]
[383949616,1757194238455,-480.38405457,0.0001397,2]
[383949617,1757194238464,-480.0,0.0001397,2]
[383949618,1757194238473,-480.0,0.0001397,2]
[383949619,1757194238483,-481.75840904,0.0001397,2]
[383949620,1757194238492,-480.0,0.0001397,2]
[383949621,1757194238502,-480.0,0.0001397,2]
[383949622,1757194238515,-480.0,0.0001397,2]
[383949623,1757194238524,-480.0,0.0001397,2]
[383949624,1757194238534,-480.0,0.0001397,2]
[383949625,1757194238714,-480.0,0.0001397,2]
[383949626,1757194238731,-480.0,0.0001397,2]
[383949627,1757194238742,-480.0,0.0001397,2]
[383949628,1757194238751,-480.0,0.0001397,2]
[383949629,1757194238762,-480.0,0.0001397,2]
[383949630,1757194238772,-480.0,0.0001397,2]
[383949631,1757194238781,-480.0,0.0001397,2]
[383949632,1757194238792,-480.0,0.0001397,2]
[383949633,1757194238801,-430.86515013,0.0001397,2]
[383949634,1757194238810,-480.0,0.0001397,2]
[383949635,1757194238820,-480.0,0.0001397,2]
[383949636,1757194238830,-480.0,0.0001397,2]
[383949637,1757194238839,-480.0,0.0001397,2]
[383949638,1757194238849,-480.0,0.0001397,2]
[383949639,1757194238859,-15456.05414091,0.00014,2]
[383949640,1757194238871,-567.95000424,0.00014,2]
[383949654,1757194240205,-0.02097539,0.00014,2]
[383949860,1757194243132,-1309.60459778,0.00014,2]
[383949863,1757194243143,-2707.63161505,0.00014,2]
[383949893,1757194246296,-13046.52787129,0.00014,2]
[383949894,1757194246307,-12446.67355696,0.00014,2]
[383949895,1757194246319,-8632.00000018,0.00014,2]
[383949896,1757194246331,-203.4943152,0.00014,2]
[383949897,1757194246342,-8425.81774502,0.0001429,2]
[383949921,1757194796459,1000.0,0.00013131,2]
[383949956,1757195042121,707.881829,0.00013159,2]
[383950511,1757195438164,-993.9126892,0.00013562,2]
[383950512,1757195438175,-707.881829,0.00013699,2]
[383950513,1757195438186,-286.030859,0.00013699,2]
[383950514,1757195438197,-691.80422175,0.00013922,2]
[383950515,1757195438208,-247.0,0.00013968,2]
[383950516,1757195438219,-300.0,0.00013968,2]
[383950517,1757195438230,-347.47789898,0.00013969,2]
[383950518,1757195438241,-480.0,0.00013969,2]
[383950519,1757195438251,-511.97762308,0.00013969,2]
[383950520,1757195438262,-480.0,0.00013969,2]
[383950521,1757195438273,-480.0,0.00013969,2]
[383950522,1757195438284,-480.0,0.00013969,2]
[383950523,1757195438295,-82.72207329,0.00013969,2]
[383950524,1757195438321,-397.27792671,0.00013969,2]
[383950525,1757195438332,-480.0,0.00013969,2]
[383950526,1757195438343,-480.0,0.00013969,2]
[383950527,1757195438354,-480.38405457,0.00013969,2]
[383950528,1757195438365,-480.0,0.00013969,2]
[383950529,1757195438376,-481.75840904,0.00013969,2]
[383950530,1757195438387,-480.0,0.00013969,2]
[383950531,1757195438399,-480.0,0.00013969,2]
[383950532,1757195438410,-480.0,0.00013969,2]
[383950533,1757195438422,-480.0,0.00013969,2]
[383950534,1757195438433,-480.0,0.00013969,2]
[383950535,1757195438444,-480.0,0.00013969,2]
[383950536,1757195438453,-480.0,0.00013969,2]
[383950537,1757195438464,-480.0,0.00013969,2]
[383950538,1757195438475,-480.0,0.00013969,2]
[383950539,1757195438486,-480.0,0.00013969,2]
[383950540,1757195438498,-430.86515013,0.00013969,2]
[383950541,1757195438509,-480.0,0.00013969,2]
[383950542,1757195438520,-480.0,0.00013969,2]
[383950543,1757195438530,-480.0,0.00014021,2]
[383950544,1757195438541,-480.0,0.00014021,2]
[383950545,1757195438552,-315.26906731,0.00014021,2]
[383950546,1757195438563,-480.0,0.00014021,2]
[383950547,1757195438574,-423.53794407,0.00014021,2]
[383950548,1757195438585,-480.0,0.00014021,2]
[383950549,1757195438595,-480.0,0.00014021,2]
[383950550,1757195438606,-480.0,0.00014021,2]
[383950551,1757195438617,-480.0,0.00014021,2]
[383950552,1757195438627,-480.0,0.00014021,2]
[383950553,1757195438637,-480.0,0.00014021,2]
[383950554,1757195438647,-480.0,0.00014021,2]
[383950555,1757195438657,-480.0,0.00014021,2]
[383950556,1757195438667,-433.28805066,0.00014021,2]
[383950557,1757195438677,-480.0,0.00014021,2]
[383950558,1757195438688,-480.0,0.00014021,2]
[383950559,1757195438699,-480.0,0.00014021,2]
[383950560,1757195438709,-480.0,0.00014021,2]
[383950561,1757195438720,-480.0,0.00014021,2]
[383950562,1757195438731,-480.0,0.00014021,2]
[383950563,1757195438743,-480.0,0.00014021,2]
[383950564,1757195438754,-480.0,0.00014022,2]
[383950565,1757195438764,-480.0,0.00014022,2]
[383950566,1757195438776,-480.0,0.00014022,2]
[383950567,1757195438786,-480.0,0.00014022,2]
[383950568,1757195438797,-480.0,0.00014022,2]
[383950569,1757195438807,-480.0,0.00014022,2]
[383950570,1757195438820,-480.0,0.00014022,2]
[383950571,1757195438831,-480.0,0.00014022,2]
[383950572,1757195438843,-480.0,0.00014022,2]
[383950573,1757195438855,-480.0,0.00014022,2]
[383950574,1757195438866,-520.0,0.00014022,2]
[383950575,1757195438878,-480.0,0.00014022,2]
[383950576,1757195438890,-480.0,0.00014022,2]
[383950577,1757195438901,-480.0,0.00014022,2]
[383950578,1757195438912,-480.0,0.00014022,2]
[383950579,1757195438922,-199.91431909,0.00014022,2]
[383950580,1757195438932,-480.0,0.00014022,2]
[383950581,1757195438943,-480.0,0.00014022,2]
[383950582,1757195438953,-480.0,0.00014022,2]
[383950583,1757195438964,-480.0,0.00014022,2]
[383950584,1757195438974,-480.0,0.00014022,2]
[383950585,1757195438984,-480.0,0.00014022,2]
[383950586,1757195438995,-480.0,0.00014022,2]
[383950587,1757195439006,-12194.11524778,0.00014023,2]
[383950588,1757195439023,-1316.39,0.00014023,2]
[383950589,1757195439038,-360.899999,0.00014023,2]
[383950590,1757195439052,-257.97830112,0.00014023,2]
[383950591,1757195439063,-480.0,0.0001429,2]
[383950592,1757195439075,-480.0,0.0001429,2]
[383950593,1757195439086,-480.0,0.0001429,2]
[383950594,1757195439097,-480.0,0.0001429,2]
[383950595,1757195439107,-480.0,0.00014295,2]
[383950596,1757195439117,-480.0,0.00014295,2]
[383950597,1757195439127,-480.0,0.00014296,2]
[383950598,1757195439138,-246.62,0.00014296,2]
[383950599,1757195439149,-160.0,0.00014595,2]
[383950600,1757195439165,-846.58554688,0.00015285,2]
[383950601,1757195439177,-160.0,0.00015285,2]
[383950602,1757195439191,-232.99021696,0.00015285,2]
[383950603,1757195439203,-417.15472785,0.00015295,2]
[383950604,1757195439215,-530.56961759,0.00015295,2]
[383950605,1757195439228,-203.21852024,0.00015295,2]
[383950606,1757195439240,-160.0,0.00015295,2]
[383950607,1757195439251,-420.0,0.00015303,2]
[383950608,1757195439268,-14129.3835479,0.0001544,2]
[383950609,1757195439278,-975.0,0.0001563,2]
[383950610,1757195439288,-409.0,0.0001563,2]
[383950611,1757195439298,-691.8042217,0.00016035,2]
[383950612,1757195439310,-2324.8440741,0.0001606,2]
[383950613,1757195439320,-2334.19900951,0.0001615,2]
[383950614,1757195439331,-151.0,0.0001615,2]